fUSD/lending_fUSD_20240718
["ID","MTS","AMOUNT","RATE_DAILY","PERIOD"]
[332523478,1721288009929,-582.9,0.00023835,2]
[332523479,1721288009938,-500.0,0.00023835,2]
[332523480,1721288009948,-500.0,0.00023835,2]
[332523481,1721288009959,-500.0,0.00023835,2]
[332523482,1721288009969,-500.0,0.00023835,2]
[332523483,1721288009978,-500.0,0.00023835,2]
[332523484,1721288009988,-500.0,0.00023835,2]
[332523485,1721288009998,-500.0,0.00023835,2]
[332523486,1721288010008,-500.0,0.00023835,2]
[332523487,1721288010017,-500.0,0.00023835,2]
[332523488,1721288010027,-408.9395512,0.00023835,2]
[332523489,1721288010037,-629.0,0.00023835,2]
[332523490,1721288010047,-500.0,0.00023835,2]
[332523491,1721288010056,-500.0,0.00023835,2]
[332523492,1721288010066,-682.95,0.00023835,2]
[332523493,1721288010077,-1036.97,0.00023835,2]
[332523494,1721288010087,-500.0,0.00023835,2]
[332523495,1721288010097,-319.91672171,0.00023835,2]
[332523496,1721288010107,-500.0,0.00023835,2]
[332523497,1721288010117,-500.0,0.00023835,2]
[332523498,1721288010127,-500.0,0.00023835,2]
[332523499,1721288010137,-500.0,0.00023835,2]
[332523500,1721288010148,-500.0,0.00023835,2]
[332523501,1721288010157,-200.4730815,0.00023835,2]
[332523502,1721288010166,-493.12,0.00023835,2]
[332523503,1721288010176,-506.97006336,0.00023835,2]
[332523504,1721288010188,-500.0,0.00023835,2]
[332523505,1721288010198,-500.0,0.00023835,2]
[332523506,1721288010208,-500.0,0.00023835,2]
[332523507,1721288010218,-500.0,0.00023835,2]
[332523508,1721288010231,-688.35,0.00023835,2]
[332523509,1721288010241,-500.0,0.00023835,2]
[332523510,1721288010251,-500.0,0.00023835,2]
[332523511,1721288010261,-500.0,0.00023835,2]
[332523512,1721288010271,-851.26,0.00023835,2]
[332523513,1721288010280,-500.0,0.00023835,2]
[332523514,1721288010289,-1046.3,0.00023835,2]
[332523515,1721288010298,-500.0,0.00023835,2]
[332523516,1721288010307,-988.22,0.00023835,2]
[332523517,1721288010317,-500.0,0.00023835,2]
[332523518,1721288010327,-500.0,0.00023835,2]
[332523519,1721288010336,-500.0,0.00023835,2]
[332523520,1721288010348,-500.0,0.00023835,2]
[332523521,1721288010358,-506.57909228,0.00023835,2]
[332523522,1721288010368,-864.94,0.00023835,2]
[332523523,1721288010379,-500.0,0.00023835,2]
[332523524,1721288010389,-500.0,0.00023835,2]
[332523525,1721288010398,-704.02,0.00023835,2]
[332523526,1721288010410,-500.0,0.00023835,2]
[332523527,1721288010420,-500.0,0.00023835,2]
[332523528,1721288010430,-500.0,0.00023835,2]
[332523529,1721288010440,-500.0,0.00023835,2]
[332523530,1721288010450,-791.51,0.00023835,2]
[332523531,1721288010460,-500.0,0.00023835,2]
[332523532,1721288010469,-500.0,0.00023835,2]
[332523533,1721288010481,-637.96,0.00023835,2]
[332523534,1721288010492,-500.0,0.00023835,2]
[332523535,1721288010504,-645.57,0.00023835,2]
[332523536,1721288010515,-500.0,0.00023835,2]
[332523537,1721288010525,-500.0,0.00023835,2]
[332523538,1721288010535,-500.0,0.00023835,2]
[332523539,1721288010545,-500.0,0.00023835,2]
[332523540,1721288010555,-632.83,0.00023835,2]
[332523541,1721288010565,-654.28,0.00023835,2]
[332523542,1721288010574,-616.18,0.00023835,2]
[332523543,1721288010584,-673.07,0.00023835,2]
[332523544,1721288010593,-500.0,0.00023835,2]
[332523545,1721288010603,-500.0,0.00023835,2]
[332523546,1721288010613,-530.94,0.00023835,2]
[332523547,1721288010624,-500.0,0.00023835,2]
[332523548,1721288010635,-527.98,0.00023835,2]
[332523549,1721288010648,-500.0,0.00023835,2]
[332523550,1721288010658,-547.08,0.00023835,2]
[332523551,1721288010667,-500.0,0.00023835,2]
[332523552,1721288010677,-500.0,0.00023835,2]
[332523553,1721288010689,-559.75,0.00023835,2]
[332523554,1721288010698,-500.0,0.00023835,2]
[332523555,1721288010708,-500.0,0.00023835,2]
[332523556,1721288010720,-500.0,0.00023835,2]
[332523557,1721288010730,-500.0,0.00023835,2]
[332523558,1721288010739,-500.0,0.00023835,2]
[332523559,1721288010749,-639.48987109,0.00023835,2]
[332523560,1721288010759,-500.0,0.00023835,2]
[332523561,1721288010769,-500.0,0.00023835,2]
[332523562,1721288010778,-500.0,0.00023835,2]
[332523563,1721288010788,-500.0,0.00023835,2]
[332523564,1721288010797,-500.0,0.00023835,2]
[332523565,1721288010807,-500.0,0.00023835,2]
[332523566,1721288010816,-500.0,0.00023835,2]
[332523567,1721288010826,-500.0,0.00023835,2]
[332523568,1721288010836,-500.0,0.00023835,2]
[332523569,1721288010846,-611.76,0.00023835,2]
[332523570,1721288010856,-753.22,0.00023835,2]
[332523571,1721288010866,-1173.23,0.00023835,2]
[332523572,1721288010875,-500.0,0.00023835,2]
[332523573,1721288010885,-709.13,0.00023835,2]
[332523574,1721288010894,-500.0,0.00023835,2]
[332523575,1721288010904,-509.2208707,0.00023835,2]
[332523576,1721288010914,-500.0,0.00023835,2]
[332523577,1721288010923,-500.0,0.00023835,2]
[332523578,1721288010933,-500.0,0.00023835,2]
[332523579,1721288010943,-500.0,0.00023835,2]
[332523580,1721288010953,-571.73,0.00023835,2]
[332523581,1721288010962,-500.0,0.00023835,2]
[332523582,1721288010972,-500.0,0.00023835,2]
[332523583,1721288010981,-500.0,0.00023835,2]
[332523584,1721288010991,-500.0,0.00023835,2]
[332523585,1721288011000,-500.0,0.00023835,2]
[332523586,1721288011010,-500.0,0.00023835,2]
[332523587,1721288011019,-500.0,0.00023835,2]
[332523588,1721288011029,-500.0,0.00023835,2]
[332523589,1721288011038,-500.0,0.00023835,2]
[332523590,1721288011048,-358.44932331,0.00023835,2]
[332523591,1721288011057,-535.11032649,0.00023835,2]
[332523592,1721288011067,-771.42,0.00023835,2]
[332523593,1721288011076,-393.7,0.00023835,2]
[332523594,1721288011086,-679.34,0.00023835,2]
[332523595,1721288011095,-500.0,0.00023835,2]
[332523596,1721288011105,-500.0,0.00023835,2]
[332523597,1721288011114,-500.0,0.00023835,2]
[332523598,1721288011123,-500.0,0.00023835,2]
[332523599,1721288011133,-500.0,0.00023835,2]
[332523600,1721288011143,-500.0,0.00023835,2]
[332523601,1721288011152,-500.0,0.00023835,2]
[332523602,1721288011162,-500.0,0.00023835,2]
[332523603,1721288011171,-199.74342796,0.00023835,2]
[332523604,1721288011181,-1055.96,0.00023835,2]
[332523605,1721288011192,-500.0,0.00023835,2]
[332523606,1721288011201,-500.0,0.00023835,2]
[332523607,1721288011210,-506.68547148,0.00023835,2]
[332523608,1721288011219,-500.0,0.00023835,2]
[332523609,1721288011228,-500.0,0.00023835,2]
[332523610,1721288011237,-500.0,0.00023835,2]
[332523611,1721288011246,-495.3019258,0.00023835,2]
[332523612,1721288011255,-756.04,0.00023835,2]
[332523613,1721288011265,-703.28,0.00023835,2]
[332523614,1721288011274,-750.7,0.00023835,2]
[332523615,1721288011283,-500.0,0.00023835,2]
[332523616,1721288011295,-500.0,0.00023835,2]
[332523617,1721288011305,-500.0,0.00023835,2]
[332523618,1721288011316,-500.0,0.00023835,2]
[332523619,1721288011327,-500.0,0.00023835,2]
[332523620,1721288011336,-500.0,0.00023835,2]
[332523621,1721288011345,-500.0,0.00023835,2]
[332523622,1721288011354,-500.0,0.00023835,2]
[332523623,1721288011363,-500.0,0.00023835,2]
[332523624,1721288011373,-1168.54,0.00023835,2]
[332523625,1721288011382,-500.0,0.00023835,2]
[332523626,1721288011391,-500.0,0.00023835,2]
[332523627,1721288011401,-500.0,0.00023835,2]
[332523628,1721288011410,-500.0,0.00023835,2]
[332523629,1721288011419,-500.0,0.00023835,2]
[332523630,1721288011428,-500.0,0.00023835,2]
[332523631,1721288011440,-500.0,0.00023835,2]
[332523632,1721288011449,-249.0891569,0.00023835,2]
[332523633,1721288011459,-500.0,0.00023835,2]
[332523634,1721288011469,-1538.77,0.00023835,2]
[332523635,1721288011479,-926.42,0.00023835,2]
[332523636,1721288011488,-1335.62,0.00023835,2]
[332523637,1721288011497,-1229.0,0.00023835,2]
[332523638,1721288011507,-500.0,0.00023835,2]
[332523639,1721288011516,-500.0,0.00023835,2]
[332523640,1721288011525,-500.0,0.00023835,2]
[332523641,1721288011535,-500.0,0.00023835,2]
[332523642,1721288011547,-500.0,0.00023835,2]
[332523643,1721288011556,-500.0,0.00023835,2]
[332523644,1721288011566,-984.25,0.00023835,2]
[332523645,1721288011575,-500.0,0.00023835,2]
[332523646,1721288011585,-500.0,0.00023835,2]
[332523647,1721288011594,-1387.55,0.00023835,2]
[332523648,1721288011604,-500.0,0.00023835,2]
[332523649,1721288011613,-500.0,0.00023835,2]
[332523650,1721288011622,-500.0,0.00023835,2]
[332523651,1721288011632,-500.0,0.00023835,2]
[332523652,1721288011645,-500.0,0.00023835,2]
[332523653,1721288011655,-500.0,0.00023835,2]
[332523654,1721288011664,-500.0,0.00023835,2]
[332523655,1721288011674,-500.0,0.00023835,2]
[332523656,1721288011685,-925.35,0.00023835,2]
[332523657,1721288011695,-500.0,0.00023835,2]
[332523658,1721288011704,-542.52,0.00023835,2]
[332523659,1721288011714,-500.0,0.00023835,2]
[332523660,1721288011726,-500.0,0.00023835,2]
[332523661,1721288011737,-500.0,0.00023835,2]
[332523662,1721288011746,-500.0,0.00023835,2]
[332523663,1721288011756,-500.0,0.00023835,2]
[332523664,1721288011766,-500.0,0.00023835,2]
[332523665,1721288011775,-500.0,0.00023835,2]
[332523666,1721288011785,-500.0,0.00023835,2]
[332523667,1721288011794,-542.08,0.00023835,2]
[332523668,1721288011803,-1699.26,0.00023835,2]
[332523669,1721288011814,-500.0,0.00023835,2]
[332523670,1721288011823,-560.08,0.00023835,2]
[332523671,1721288011832,-500.0,0.00023835,2]
[332523672,1721288011841,-500.0,0.00023835,2]
[332523673,1721288011851,-443.76588556,0.00023835,2]
[332523674,1721288011861,-500.0,0.00023835,2]
[332523675,1721288011870,-500.0,0.00023835,2]
[332523676,1721288011880,-500.0,0.00023835,2]
[332523677,1721288011889,-500.0,0.00023835,2]
[332523678,1721288011898,-500.0,0.00023835,2]
[332523679,1721288011908,-500.0,0.00023835,2]
[332523680,1721288011918,-500.0,0.00023835,2]
[332523681,1721288011928,-500.0,0.00023835,2]
[332523682,1721288011940,-500.0,0.00023835,2]
[332523683,1721288011951,-500.0,0.00023835,2]
[332523684,1721288011961,-500.0,0.00023835,2]
[332523685,1721288011970,-1355.83,0.00023835,2]
[332523686,1721288011981,-500.0,0.00023835,2]
[332523687,1721288011991,-505.95,0.00023835,2]
[332523688,1721288012001,-500.0,0.00023835,2]
[332523689,1721288012011,-500.0,0.00023835,2]
[332523690,1721288012022,-500.0,0.00023835,2]
[332523691,1721288012032,-628.74,0.00023835,2]
[332523692,1721288012042,-500.0,0.00023835,2]
[332523693,1721288012052,-500.0,0.00023835,2]
[332523694,1721288012062,-500.0,0.00023835,2]
[332523695,1721288012072,-500.0,0.00023835,2]
[332523696,1721288012083,-676.4,0.00023835,2]
[332523697,1721288012093,-538.06,0.00023835,2]
[332523698,1721288012103,-500.0,0.00023835,2]
[332523699,1721288012112,-500.0,0.00023835,2]
[332523700,1721288012122,-500.0,0.00023835,2]
[332523701,1721288012132,-500.0,0.00023835,2]
[332523702,1721288012141,-1065.58,0.00023835,2]
[332523703,1721288012151,-505.61384407,0.00023835,2]
[332523704,1721288012161,-500.0,0.00023835,2]
[332523705,1721288012170,-500.0,0.00023835,2]
[332523706,1721288012180,-500.0,0.00023835,2]
[332523707,1721288012196,-500.0,0.00023835,2]
[332523708,1721288012206,-500.0,0.00023835,2]
[332523709,1721288012215,-500.0,0.00023835,2]
[332523710,1721288012224,-872.67,0.00023835,2]
[332523711,1721288012233,-500.0,0.00023835,2]
[332523712,1721288012358,-1348.92,0.00023835,2]
[332523713,1721288012368,-500.0,0.00023835,2]
[332523714,1721288012378,-500.0,0.00023835,2]
[332523715,1721288012388,-500.0,0.00023835,2]
[332523716,1721288012397,-500.0,0.00023835,2]
[332523717,1721288012407,-838.7,0.00023835,2]
[332523718,1721288012415,-500.0,0.00023835,2]
[332523719,1721288012425,-500.0,0.00023835,2]
[332523720,1721288012437,-500.0,0.00023835,2]
[332523721,1721288012446,-503.03,0.00023835,2]
[332523722,1721288012455,-500.0,0.00023835,2]
[332523723,1721288012464,-500.0,0.00023835,2]
[332523724,1721288012474,-500.0,0.00023835,2]
[332523725,1721288012484,-500.0,0.00023835,2]
[332523726,1721288012493,-500.0,0.00023835,2]
[332523727,1721288012502,-507.43005387,0.00023835,2]
[332523728,1721288012512,-500.0,0.00023835,2]
[332523729,1721288012520,-500.0,0.00023835,2]
[332523730,1721288012530,-500.0,0.00023835,2]
[332523731,1721288012539,-500.0,0.00023835,2]
[332523732,1721288012549,-500.0,0.00023835,2]
[332523733,1721288012558,-802.6,0.00023835,2]
[332523734,1721288012567,-500.0,0.00023835,2]
[332523735,1721288012579,-780.83,0.00023835,2]
[332523736,1721288012589,-579.37,0.00023835,2]
[332523737,1721288012599,-500.0,0.00023835,2]
[332523738,1721288012610,-781.35,0.00023835,2]
[332523739,1721288012619,-500.0,0.00023835,2]
[332523740,1721288012628,-724.1,0.00023835,2]
[332523741,1721288012639,-500.0,0.00023835,2]
[332523742,1721288012651,-500.0,0.00023835,2]
[332523743,1721288012662,-500.0,0.00023835,2]
[332523744,1721288012671,-500.0,0.00023835,2]
[332523745,1721288012688,-568.82,0.00023835,2]
[332523746,1721288012698,-500.0,0.00023835,2]
[332523747,1721288012707,-500.0,0.00023835,2]
[332523748,1721288012717,-1287.42,0.00023835,2]
[332523749,1721288012727,-500.0,0.00023835,2]
[332523750,1721288012736,-500.0,0.00023835,2]
[332523751,1721288012745,-500.0,0.00023835,2]
[332523752,1721288012755,-771.73,0.00023835,2]
[332523753,1721288012763,-500.0,0.00023835,2]
[332523754,1721288012773,-1353.92,0.00023835,2]
[332523755,1721288012782,-1387.82,0.00023835,2]
[332523756,1721288012791,-500.0,0.00023835,2]
[332523757,1721288012801,-501.8719119,0.00023835,2]
[332523758,1721288012810,-500.0,0.00023835,2]
[332523759,1721288012819,-500.0,0.00023835,2]
[332523760,1721288012828,-366.64930551,0.00023835,2]
[332523761,1721288012838,-553.81,0.00023835,2]
[332523762,1721288012847,-500.0,0.00023835,2]
[332523763,1721288012856,-500.0,0.00023835,2]
[332523764,1721288012865,-500.0,0.00023835,2]
[332523765,1721288012874,-500.0,0.00023835,2]
[332523766,1721288012883,-500.0,0.00023835,2]
[332523767,1721288012893,-500.0,0.00023835,2]
[332523768,1721288012903,-500.0,0.00023835,2]
[332523769,1721288012912,-500.0,0.00023835,2]
[332523770,1721288012922,-500.0,0.00023835,2]
[332523771,1721288012931,-682.98,0.00023835,2]
[332523772,1721288012945,-911.72,0.00023835,2]
[332523773,1721288012955,-819.38,0.00023835,2]
[332523774,1721288012964,-500.0,0.00023835,2]
[332523775,1721288012974,-972.31,0.00023835,2]
[332523776,1721288012983,-507.21511337,0.00023835,2]
[332523777,1721288012993,-500.0,0.00023835,2]
[332523778,1721288013002,-500.0,0.00023835,2]
[332523779,1721288013011,-1109.76,0.00023835,2]
[332523780,1721288013021,-500.0,0.00023835,2]
[332523781,1721288013030,-500.0,0.00023835,2]
[332523782,1721288013040,-500.0,0.00023835,2]
[332523783,1721288013050,-520.95907841,0.00023835,2]
[332523784,1721288013059,-500.0,0.00023835,2]
[332523785,1721288013069,-222.31042449,0.00023835,2]
[332523786,1721288013079,-500.0,0.00023835,2]
[332523787,1721288013088,-836.26,0.00023835,2]
[332523788,1721288013097,-500.0,0.00023835,2]
[332523789,1721288013107,-500.0,0.00023835,2]
[332523790,1721288013117,-544.15,0.00023835,2]
[332523791,1721288013127,-500.0,0.00023835,2]
[332523792,1721288013137,-500.0,0.00023835,2]
[332523793,1721288013147,-744.75,0.00023835,2]
[332523794,1721288013156,-659.68,0.00023835,2]
[332523795,1721288013165,-500.0,0.00023835,2]
[332523796,1721288013175,-918.1,0.00023835,2]
[332523797,1721288013187,-1074.46,0.00023835,2]
[332523798,1721288013197,-500.0,0.00023835,2]
[332523799,1721288013206,-500.0,0.00023835,2]
[332523800,1721288013216,-509.41327727,0.00023835,2]
[332523801,1721288013225,-500.0,0.00023835,2]
[332523802,1721288013236,-637.37,0.00023835,2]
[332523803,1721288013246,-500.0,0.00023835,2]
[332523804,1721288013255,-500.0,0.00023835,2]
[332523805,1721288013265,-941.47,0.00023835,2]
[332523806,1721288013274,-500.0,0.00023835,2]
[332523807,1721288013283,-808.27,0.00023835,2]
[332523808,1721288013292,-1715.0,0.00023835,2]
[332523809,1721288013303,-500.0,0.00023835,2]
[332523810,1721288013315,-500.0,0.00023835,2]
[332523811,1721288013325,-220.62108711,0.00023835,2]
[332523812,1721288013335,-500.0,0.00023835,2]
[332523813,1721288013344,-543.92,0.00023835,2]
[332523814,1721288013354,-702.02,0.00023835,2]
[332523815,1721288013363,-500.0,0.00023835,2]
[332523816,1721288013372,-500.0,0.00023835,2]
[332523817,1721288013381,-500.0,0.00023835,2]
[332523818,1721288013390,-500.0,0.00023835,2]
[332523819,1721288013400,-500.0,0.00023835,2]
[332523820,1721288013409,-500.0,0.00023835,2]
[332523821,1721288013418,-848.98,0.00023835,2]
[332523822,1721288013427,-256.68233096,0.00023835,2]
[332523823,1721288013439,-500.0,0.00023835,2]
[332523824,1721288013448,-500.0,0.00023835,2]
[332523825,1721288013457,-833.62,0.00023835,2]
[332523826,1721288013467,-500.0,0.00023835,2]
[332523827,1721288013477,-747.03,0.00023835,2]
[332523828,1721288013487,-694.12,0.00023835,2]
[332523829,1721288013496,-500.0,0.00023835,2]
[332523830,1721288013506,-1393.96,0.00023835,2]
[332523831,1721288013515,-923.3,0.00023835,2]
[332523832,1721288013525,-864.51,0.00023835,2]
[332523833,1721288013534,-874.63,0.00023835,2]
[332523834,1721288013542,-500.0,0.00023835,2]
[332523835,1721288013551,-500.0,0.00023835,2]
[332523836,1721288013560,-572.13,0.00023835,2]
[332523837,1721288013569,-500.0,0.00023835,2]
[332523838,1721288013578,-768.44,0.00023835,2]
[332523839,1721288013588,-919.94,0.00023835,2]
[332523840,1721288013597,-500.0,0.00023835,2]
[332523841,1721288013607,-500.0,0.00023835,2]
[332523842,1721288013616,-500.0,0.00023835,2]
[332523843,1721288013625,-500.0,0.00023835,2]
[332523844,1721288013635,-500.0,0.00023835,2]
[332523845,1721288013647,-500.0,0.00023835,2]
[332523846,1721288013656,-500.0,0.00023835,2]
[332523847,1721288013665,-500.0,0.00023835,2]
[332523848,1721288013674,-271.1790904,0.00023835,2]
[332523849,1721288013684,-567.01,0.00023835,2]
[332523850,1721288013698,-750.97,0.00023835,2]
[332523851,1721288013707,-500.0,0.00023835,2]
[332523852,1721288013717,-500.0,0.00023835,2]
[332523853,1721288013728,-500.0,0.00023835,2]
[332523854,1721288013738,-664.81,0.00023835,2]
[332523855,1721288013748,-500.0,0.00023835,2]
[332523856,1721288013757,-500.0,0.00023835,2]
[332523857,1721288013766,-1439.37,0.00023835,2]
[332523858,1721288013776,-500.0,0.00023835,2]
[332523859,1721288013785,-500.0,0.00023835,2]
[332523860,1721288013794,-820.24,0.00023835,2]
[332523861,1721288013804,-500.0,0.00023835,2]
[332523862,1721288013813,-500.0,0.00023835,2]
[332523863,1721288013822,-500.0,0.00023835,2]
[332523864,1721288013832,-659.88,0.00023835,2]
[332523865,1721288013842,-500.0,0.00023835,2]
[332523866,1721288013851,-500.0,0.00023835,2]
[332523867,1721288013861,-675.36,0.00023835,2]
[332523868,1721288013870,-500.0,0.00023835,2]
[332523869,1721288013880,-500.0,0.00023835,2]
[332523870,1721288013889,-1239.37,0.00023835,2]
[332523871,1721288013899,-500.0,0.00023835,2]
[332523872,1721288013909,-587.43,0.00023835,2]
[332523873,1721288013918,-500.0,0.00023835,2]
[332523874,1721288013927,-500.0,0.00023835,2]
[332523875,1721288013939,-500.0,0.00023835,2]
[332523876,1721288013949,-500.0,0.00023835,2]
[332523877,1721288013958,-500.0,0.00023835,2]
[332523878,1721288013967,-500.0,0.00023835,2]
[332523879,1721288013976,-500.0,0.00023835,2]
[332523880,1721288013986,-500.0,0.00023835,2]
[332523881,1721288013995,-1037.75,0.00023835,2]
[332523882,1721288014005,-1312.95,0.00023835,2]
[332523883,1721288014015,-500.0,0.00023835,2]
[332523884,1721288014025,-500.0,0.00023835,2]
[332523885,1721288014034,-1508.18,0.00023835,2]
[332523886,1721288014044,-759.36,0.00023835,2]
[332523887,1721288014054,-589.69,0.00023835,2]
[332523888,1721288014063,-620.94446818,0.00023835,2]
[332523889,1721288014073,-589.59,0.00023835,2]
[332523890,1721288014083,-500.0,0.00023835,2]
[332523891,1721288014093,-500.0,0.00023835,2]
[332523892,1721288014103,-500.0,0.00023835,2]
[332523893,1721288014112,-500.0,0.00023835,2]
[332523894,1721288014122,-519.36,0.00023835,2]
[332523895,1721288014132,-500.0,0.00023835,2]
[332523896,1721288014142,-500.0,0.00023835,2]
[332523897,1721288014151,-465.48,0.00023835,2]
[332523898,1721288014161,-500.0,0.00023835,2]
[332523899,1721288014172,-500.0,0.00023835,2]
[332523900,1721288014196,-500.0,0.00023835,2]
[332523901,1721288014215,-500.0,0.00023835,2]
[332523902,1721288014224,-500.0,0.00023835,2]
[332523903,1721288014234,-463.31397456,0.00023835,2]
[332523904,1721288014243,-1570.3,0.00023835,2]
[332523905,1721288014253,-500.0,0.00023835,2]
[332523906,1721288014262,-645.88421287,0.00023835,2]
[332523907,1721288014271,-500.0,0.00023835,2]
[332523908,1721288014280,-500.0,0.00023835,2]
[332523909,1721288014289,-500.0,0.00023835,2]
[332523910,1721288014298,-500.0,0.00023835,2]
[332523911,1721288014307,-684.5,0.00023835,2]
[332523912,1721288014317,-500.0,0.00023835,2]
[332523913,1721288014326,-510.49002754,0.00023835,2]
[332523914,1721288014334,-500.0,0.00023835,2]
[332523915,1721288014343,-500.0,0.00023835,2]
[332523916,1721288014353,-778.25,0.00023835,2]
[332523917,1721288014363,-500.0,0.00023835,2]
[332523918,1721288014372,-1825.46,0.00023835,2]
[332523919,1721288014382,-647.56,0.00023835,2]
[332523920,1721288014392,-1501.12,0.00023835,2]
[332523921,1721288014401,-649.76,0.00023835,2]
[332523922,1721288014411,-500.0,0.00023835,2]
[332523923,1721288014421,-500.0,0.00023835,2]
[332523924,1721288014430,-500.0,0.00023835,2]
[332523925,1721288014442,-500.0,0.00023835,2]
[332523926,1721288014451,-500.0,0.00023835,2]
[332523927,1721288014462,-500.0,0.00023835,2]
[332523928,1721288014472,-698.16,0.00023835,2]
[332523929,1721288014483,-500.0,0.00023835,2]
[332523930,1721288014493,-500.0,0.00023835,2]
[332523931,1721288014503,-500.0,0.00023835,2]
[332523932,1721288014512,-500.0,0.00023835,2]
[332523933,1721288014522,-500.0,0.00023835,2]
[332523934,1721288014531,-503.75559587,0.00023835,2]
[332523935,1721288014541,-838.21,0.00023835,2]
[332523936,1721288014551,-500.0,0.00023835,2]
[332523937,1721288014561,-500.0,0.00023835,2]
[332523938,1721288014572,-500.0,0.00023835,2]
[332523939,1721288014582,-500.0,0.00023835,2]
[332523940,1721288014592,-832.49,0.00023835,2]
[332523941,1721288014602,-500.0,0.00023835,2]
[332523942,1721288014613,-500.0,0.00023835,2]
[332523943,1721288014623,-589.55739321,0.00023835,2]
[332523944,1721288014632,-500.0,0.00023835,2]
[332523945,1721288014645,-491.82252209,0.00023835,2]
[332523946,1721288014655,-500.0,0.00023835,2]
[332523947,1721288014665,-635.85,0.00023835,2]
[332523948,1721288014675,-500.0,0.00023835,2]
[332523949,1721288014686,-531.49924426,0.00023835,2]
[332523950,1721288014696,-500.0,0.00023835,2]
[332523951,1721288014706,-1002.59,0.00023835,2]
[332523952,1721288014716,-500.0,0.00023835,2]
[332523953,1721288014728,-500.0,0.00023835,2]
[332523954,1721288014738,-500.0,0.00023835,2]
[332523955,1721288014748,-500.0,0.00023835,2]
[332523956,1721288014757,-1264.99,0.00023835,2]
[332523957,1721288014767,-558.12,0.00023835,2]
[332523958,1721288014776,-667.65,0.00023835,2]
[332523959,1721288014785,-828.72,0.00023835,2]
[332523960,1721288014795,-503.72972941,0.00023835,2]
[332523961,1721288014804,-935.3,0.00023835,2]
[332523962,1721288014813,-825.13,0.00023835,2]
[332523963,1721288014823,-500.0,0.00023835,2]
[332523964,1721288014833,-500.0,0.00023835,2]
[332523965,1721288014843,-500.0,0.00023835,2]
[332523966,1721288014853,-500.0,0.00023835,2]
[332523967,1721288014863,-500.0,0.00023835,2]
[332523968,1721288014873,-500.0,0.00023835,2]
[332523969,1721288014883,-572.09,0.00023835,2]
[332523970,1721288014892,-500.0,0.00023835,2]
[332523971,1721288014902,-801.73,0.00023835,2]
[332523972,1721288014911,-829.06,0.00023835,2]
[332523973,1721288014921,-500.0,0.00023835,2]
[332523974,1721288014931,-502.63056509,0.00023835,2]
[332523975,1721288014942,-500.0,0.00023835,2]
[332523976,1721288014951,-500.0,0.00023835,2]
[332523977,1721288014961,-500.0,0.00023835,2]